[Event "Titled Tuesday Blitz May 2 Early 2023"]
[White "Tarasova, Viktoriya"]
[Black "Pujari, Rucha"]
[WhiteFideId "4175840"]
[BlackFideId "5024528"]
[WhiteElo "2182"]
[BlackElo "2129"]
[Result "1-0"]
[Round "11"]
[TimeControl "180+2"]
[Date "2023.05.03"]
[WhiteClock "0:00:00"]
[BlackClock "0:00:00"]

1. d4 {[%clk 0:00:01]}  d5 {[%clk 0:00:01]} 2. c4 {[%clk 0:00:01]}  e6 {[%clk 0:00:01]} 3. Nc3 {[%clk 0:00:01]}  Nf6 {[%clk 0:00:01]} 4. cxd5 {[%clk 0:00:01]}  exd5 {[%clk 0:00:01]} 5. Bg5 {[%clk 0:00:01]}  c6 {[%clk 0:00:01]} 6. Qc2 {[%clk 0:00:01]}  Be7 {[%clk 0:00:01]} 7. e3 {[%clk 0:00:01]}  O-O {[%clk 0:00:01]} 8. Bd3 {[%clk 0:00:01]}  Nbd7 {[%clk 0:00:01]} 9. Nge2 {[%clk 0:00:01]}  Re8 {[%clk 0:00:01]} 10. O-O {[%clk 0:00:01]}  Nf8 {[%clk 0:00:01]} 11. h3 {[%clk 0:00:01]}  g6 {[%clk 0:00:01]} 12. Rae1 {[%clk 0:00:01]}  Ne6 {[%clk 0:00:01]} 13. Bh4 {[%clk 0:00:01]}  Ng7 {[%clk 0:00:01]} 14. f3 {[%clk 0:00:01]}  c5 {[%clk 0:00:01]} 15. dxc5 {[%clk 0:00:01]}  Bxc5 {[%clk 0:00:01]} 16. Nd4 {[%clk 0:00:01]}  Be6 {[%clk 0:00:01]} 17. Nce2 {[%clk 0:00:01]}  Rc8 {[%clk 0:00:00]} 18. Qb3 {[%clk 0:00:01]}  Bb6 {[%clk 0:00:00]} 19. Rc1 {[%clk 0:00:01]}  Qe7 {[%clk 0:00:00]} 20. Rxc8 {[%clk 0:00:01]}  Rxc8 {[%clk 0:00:00]} 21. Bf2 {[%clk 0:00:00]}  Nd7 {[%clk 0:00:00]} 22. Rc1 {[%clk 0:00:00]}  Rxc1+ {[%clk 0:00:00]} 23. Nxc1 {[%clk 0:00:00]}  Qg5 {[%clk 0:00:00]} 24. h4 {[%clk 0:00:00]}  Qf6 {[%clk 0:00:00]} 25. Qc2 {[%clk 0:00:00]}  Ne5 {[%clk 0:00:00]} 26. Be2 {[%clk 0:00:00]}  h5 {[%clk 0:00:00]} 27. Nd3 {[%clk 0:00:00]}  Nc4 {[%clk 0:00:00]} 28. Qc3 {[%clk 0:00:00]}  Nf5 {[%clk 0:00:00]} 29. Nxf5 {[%clk 0:00:00]}  Qxc3 {[%clk 0:00:00]} 30. Nh6+ {[%clk 0:00:00]}  Kh7 {[%clk 0:00:00]} 31. bxc3 {[%clk 0:00:00]}  Kxh6 {[%clk 0:00:00]} 32. e4 {[%clk 0:00:00]}  dxe4 {[%clk 0:00:00]} 33. fxe4 {[%clk 0:00:00]}  Kg7 {[%clk 0:00:00]} 34. Nf4 {[%clk 0:00:00]}  Bxf2+ {[%clk 0:00:00]} 35. Kxf2 {[%clk 0:00:00]}  Kf6 {[%clk 0:00:00]} 36. Nxe6 {[%clk 0:00:00]}  Nd6 {[%clk 0:00:00]} 37. Ng5 {[%clk 0:00:00]}  Ke5 {[%clk 0:00:00]} 38. Ke3 {[%clk 0:00:00]}  f6 {[%clk 0:00:00]} 39. Nf3+ {[%clk 0:00:00]}  Ke6 {[%clk 0:00:00]} 40. Bd3 {[%clk 0:00:00]}  a6 {[%clk 0:00:00]} 41. Kf4 {[%clk 0:00:00]}  b5 {[%clk 0:00:00]} 42. Nd4+ {[%clk 0:00:00]}  Kf7 {[%clk 0:00:00]} 43. e5 {[%clk 0:00:00]}  Ne8 {[%clk 0:00:00]} 44. e6+ {[%clk 0:00:00]} 1-0


[Site "https://www.chess.com"]

[Event "Titled Tuesday Blitz May 2 Early 2023"]
[White "Seder, Mohammed"]
[Black "Eidelman, Gabriel"]
[WhiteFideId "11505567"]
[BlackFideId "30910544"]
[WhiteElo "1862"]
[BlackElo "2209"]
[Result "1/2-1/2"]
[Round "11"]
[TimeControl "180+2"]
[Date "2023.05.03"]
[WhiteClock "0:00:00"]
[BlackClock "0:00:00"]

1. e4 {[%clk 0:00:01]}  d6 {[%clk 0:00:01]} 2. d4 {[%clk 0:00:01]}  g6 {[%clk 0:00:01]} 3. Nc3 {[%clk 0:00:01]}  Bg7 {[%clk 0:00:01]} 4. Be3 {[%clk 0:00:01]}  c6 {[%clk 0:00:01]} 5. a4 {[%clk 0:00:01]}  Nf6 {[%clk 0:00:01]} 6. f3 {[%clk 0:00:01]}  O-O {[%clk 0:00:01]} 7. Qd2 {[%clk 0:00:01]}  a6 {[%clk 0:00:01]} 8. g4 {[%clk 0:00:01]}  Qb6 {[%clk 0:00:01]} 9. d5 {[%clk 0:00:01]}  Qa5 {[%clk 0:00:01]} 10. Bc4 {[%clk 0:00:01]}  cxd5 {[%clk 0:00:01]} 11. exd5 {[%clk 0:00:01]}  b5 {[%clk 0:00:01]} 12. Bb3 {[%clk 0:00:01]}  Bb7 {[%clk 0:00:01]} 13. h4 {[%clk 0:00:01]}  b4 {[%clk 0:00:01]} 14. Ne4 {[%clk 0:00:00]}  Nxd5 {[%clk 0:00:00]} 15. Bh6 {[%clk 0:00:00]}  Nf6 {[%clk 0:00:00]} 16. Nxf6+ {[%clk 0:00:00]}  exf6 {[%clk 0:00:00]} 17. O-O-O {[%clk 0:00:00]}  Nd7 {[%clk 0:00:00]} 18. h5 {[%clk 0:00:00]}  Bxh6 {[%clk 0:00:00]} 19. Qxh6 {[%clk 0:00:00]}  Qg5+ {[%clk 0:00:00]} 20. Qxg5 {[%clk 0:00:00]}  fxg5 {[%clk 0:00:00]} 21. hxg6 {[%clk 0:00:00]}  hxg6 {[%clk 0:00:00]} 22. Rxd6 {[%clk 0:00:00]}  Ne5 {[%clk 0:00:00]} 23. Rb6 {[%clk 0:00:00]}  Rab8 {[%clk 0:00:00]} 24. Rxb4 {[%clk 0:00:00]}  Bxf3 {[%clk 0:00:00]} 25. Nxf3 {[%clk 0:00:00]}  Nxf3 {[%clk 0:00:00]} 26. Rxb8 {[%clk 0:00:00]}  Rxb8 {[%clk 0:00:00]} 27. Rf1 {[%clk 0:00:00]}  Ne5 {[%clk 0:00:00]} 28. Rf6 {[%clk 0:00:00]}  Kg7 {[%clk 0:00:00]} 29. Rxa6 {[%clk 0:00:00]}  Nxg4 {[%clk 0:00:00]} 30. a5 {[%clk 0:00:00]}  Ne5 {[%clk 0:00:00]} 31. Rb6 {[%clk 0:00:00]}  Rxb6 {[%clk 0:00:00]} 32. axb6 {[%clk 0:00:00]}  g4 {[%clk 0:00:00]} 33. b7 {[%clk 0:00:00]}  Nd7 {[%clk 0:00:00]} 34. Kd2 {[%clk 0:00:00]}  Kf6 {[%clk 0:00:00]} 35. Ke3 {[%clk 0:00:00]}  Ke7 {[%clk 0:00:00]} 36. Kf4 {[%clk 0:00:00]}  f5 {[%clk 0:00:00]} 37. Ba4 {[%clk 0:00:00]}  Nb8 {[%clk 0:00:00]} 38. c4 {[%clk 0:00:00]}  Kd6 {[%clk 0:00:00]} 39. Be8 {[%clk 0:00:00]}  g5+ {[%clk 0:00:00]} 40. Kg3 {[%clk 0:00:00]}  Kc7 {[%clk 0:00:00]} 41. Bg6 {[%clk 0:00:00]}  Kxb7 {[%clk 0:00:00]} 42. Bxf5 {[%clk 0:00:00]}  Kb6 {[%clk 0:00:00]} 43. b3 {[%clk 0:00:00]}  Kc5 {[%clk 0:00:00]} 44. Kxg4 {[%clk 0:00:00]}  Nc6 {[%clk 0:00:00]} 45. Kxg5 {[%clk 0:00:00]}  Nd4 {[%clk 0:00:00]} 46. Kf4 {[%clk 0:00:00]}  Nxb3 {[%clk 0:00:00]} 47. Be6 {[%clk 0:00:00]}  Na5 {[%clk 0:00:00]} 48. Bd5 {[%clk 0:00:00]}  Nxc4 {[%clk 0:00:00]} 1/2-1/2


[Site "https://www.chess.com"]

[Event "Titled Tuesday Blitz May 2 Early 2023"]
[White "Osinovsky, Stepan"]
[Black "Aldokhin, Ivan"]
[WhiteFideId "4157354"]
[BlackFideId "24115720"]
[WhiteElo "2222"]
[BlackElo "2322"]
[Result "1-0"]
[Round "11"]
[TimeControl "180+2"]
[Date "2023.05.03"]
[WhiteClock "0:00:00"]
[BlackClock "0:00:00"]

1. e4 {[%clk 0:00:01]}  c5 {[%clk 0:00:01]} 2. Nf3 {[%clk 0:00:01]}  e6 {[%clk 0:00:01]} 3. d3 {[%clk 0:00:01]}  Nc6 {[%clk 0:00:01]} 4. Nbd2 {[%clk 0:00:01]}  g6 {[%clk 0:00:01]} 5. g3 {[%clk 0:00:01]}  Bg7 {[%clk 0:00:01]} 6. Bg2 {[%clk 0:00:01]}  d5 {[%clk 0:00:01]} 7. O-O {[%clk 0:00:01]}  Nge7 {[%clk 0:00:01]} 8. Re1 {[%clk 0:00:01]}  O-O {[%clk 0:00:01]} 9. Qe2 {[%clk 0:00:01]}  Bd7 {[%clk 0:00:01]} 10. h4 {[%clk 0:00:01]}  Rc8 {[%clk 0:00:01]} 11. h5 {[%clk 0:00:01]}  Nd4 {[%clk 0:00:01]} 12. Nxd4 {[%clk 0:00:01]}  cxd4 {[%clk 0:00:01]} 13. exd5 {[%clk 0:00:01]}  Nxd5 {[%clk 0:00:01]} 14. Bxd5 {[%clk 0:00:01]}  exd5 {[%clk 0:00:01]} 15. Nb3 {[%clk 0:00:01]}  Re8 {[%clk 0:00:01]} 16. Qd1 {[%clk 0:00:01]}  Rxe1+ {[%clk 0:00:01]} 17. Qxe1 {[%clk 0:00:01]}  Rxc2 {[%clk 0:00:01]} 18. h6 {[%clk 0:00:01]}  Bf6 {[%clk 0:00:01]} 19. Qd1 {[%clk 0:00:01]}  Rc6 {[%clk 0:00:01]} 20. Bf4 {[%clk 0:00:01]}  g5 {[%clk 0:00:01]} 21. Bd2 {[%clk 0:00:01]}  Bf5 {[%clk 0:00:01]} 22. Qf3 {[%clk 0:00:01]}  Qd7 {[%clk 0:00:01]} 23. Re1 {[%clk 0:00:01]}  Re6 {[%clk 0:00:00]} 24. Rxe6 {[%clk 0:00:01]}  Qxe6 {[%clk 0:00:00]} 25. Nc5 {[%clk 0:00:01]}  Qc8 {[%clk 0:00:00]} 26. g4 {[%clk 0:00:01]}  Qxc5 {[%clk 0:00:00]} 27. Qxf5 {[%clk 0:00:01]}  Qc6 {[%clk 0:00:00]} 28. Bxg5 {[%clk 0:00:01]}  Bxg5 {[%clk 0:00:00]} 29. Qxg5+ {[%clk 0:00:01]}  Kf8 {[%clk 0:00:00]} 30. Qg7+ {[%clk 0:00:01]}  Ke7 {[%clk 0:00:00]} 31. Qxh7 {[%clk 0:00:01]}  Qc1+ {[%clk 0:00:00]} 32. Kg2 {[%clk 0:00:01]}  Qf4 {[%clk 0:00:00]} 33. Qg7 {[%clk 0:00:01]}  Qf6 {[%clk 0:00:00]} 34. Qxf6+ {[%clk 0:00:00]}  Kxf6 {[%clk 0:00:00]} 35. g5+ {[%clk 0:00:00]}  Kg6 {[%clk 0:00:00]} 36. f4 {[%clk 0:00:00]}  f5 {[%clk 0:00:00]} 37. Kf2 {[%clk 0:00:00]}  b6 {[%clk 0:00:00]} 38. Ke2 {[%clk 0:00:00]}  a6 {[%clk 0:00:00]} 39. Kd2 {[%clk 0:00:00]}  Kf7 {[%clk 0:00:00]} 40. Kc2 {[%clk 0:00:00]}  Kg6 {[%clk 0:00:00]} 41. Kb3 {[%clk 0:00:00]}  Kf7 {[%clk 0:00:00]} 42. Kb4 {[%clk 0:00:00]}  Kg6 {[%clk 0:00:00]} 43. a4 {[%clk 0:00:00]} 1-0


[Site "https://www.chess.com"]

[Event "Titled Tuesday Blitz May 2 Early 2023"]
[White "Martinez Reyes, Pedro Ramon"]
[Black "Liu, Casper"]
[WhiteFideId "3901807"]
[BlackFideId "1454153"]
[WhiteElo "2340"]
[BlackElo "2221"]
[Result "1-0"]
[Round "11"]
[TimeControl "180+2"]
[Date "2023.05.03"]
[WhiteClock "0:00:00"]
[BlackClock "0:00:00"]

1. d4 {[%clk 0:00:01]}  Nf6 {[%clk 0:00:01]} 2. c4 {[%clk 0:00:01]}  g6 {[%clk 0:00:01]} 3. Nc3 {[%clk 0:00:01]}  Bg7 {[%clk 0:00:01]} 4. Nf3 {[%clk 0:00:01]}  O-O {[%clk 0:00:01]} 5. e4 {[%clk 0:00:01]}  d6 {[%clk 0:00:01]} 6. Bd3 {[%clk 0:00:01]}  Na6 {[%clk 0:00:01]} 7. O-O {[%clk 0:00:01]}  Bg4 {[%clk 0:00:01]} 8. Be3 {[%clk 0:00:01]}  e5 {[%clk 0:00:01]} 9. d5 {[%clk 0:00:01]}  Nc5 {[%clk 0:00:01]} 10. Bc2 {[%clk 0:00:01]}  a5 {[%clk 0:00:01]} 11. a3 {[%clk 0:00:01]}  Nh5 {[%clk 0:00:01]} 12. h3 {[%clk 0:00:01]}  Bxf3 {[%clk 0:00:01]} 13. Qxf3 {[%clk 0:00:01]}  Qh4 {[%clk 0:00:01]} 14. b4 {[%clk 0:00:01]}  Nd7 {[%clk 0:00:01]} 15. Nb5 {[%clk 0:00:01]}  f5 {[%clk 0:00:01]} 16. exf5 {[%clk 0:00:01]}  e4 {[%clk 0:00:01]} 17. Qg4 {[%clk 0:00:01]}  Qxg4 {[%clk 0:00:01]} 18. hxg4 {[%clk 0:00:01]}  Bxa1 {[%clk 0:00:01]} 19. gxh5 {[%clk 0:00:01]}  Be5 {[%clk 0:00:00]} 20. fxg6 {[%clk 0:00:01]}  hxg6 {[%clk 0:00:00]} 21. hxg6 {[%clk 0:00:01]}  axb4 {[%clk 0:00:00]} 22. axb4 {[%clk 0:00:01]}  Nf6 {[%clk 0:00:00]} 23. Nxc7 {[%clk 0:00:01]}  Ra2 {[%clk 0:00:00]} 24. Bb1 {[%clk 0:00:01]}  Rb2 {[%clk 0:00:00]} 25. Ne6 {[%clk 0:00:01]}  Rc8 {[%clk 0:00:00]} 26. c5 {[%clk 0:00:00]}  Ra8 {[%clk 0:00:00]} 27. c6 {[%clk 0:00:00]}  bxc6 {[%clk 0:00:00]} 28. dxc6 {[%clk 0:00:00]}  d5 {[%clk 0:00:00]} 29. c7 {[%clk 0:00:00]}  Ne8 {[%clk 0:00:00]} 30. Rc1 {[%clk 0:00:00]}  Nxc7 {[%clk 0:00:00]} 31. Nxc7 {[%clk 0:00:00]}  Bxc7 {[%clk 0:00:00]} 32. Rxc7 {[%clk 0:00:00]}  Rxb1+ {[%clk 0:00:00]} 33. Kh2 {[%clk 0:00:00]}  Rxb4 {[%clk 0:00:00]} 34. Bh6 {[%clk 0:00:00]}  Rab8 {[%clk 0:00:00]} 35. Rg7+ {[%clk 0:00:00]}  Kh8 {[%clk 0:00:00]} 36. Rh7+ {[%clk 0:00:00]}  Kg8 {[%clk 0:00:00]} 37. Rg7+ {[%clk 0:00:00]}  Kh8 {[%clk 0:00:00]} 38. Rd7 {[%clk 0:00:00]}  R4b7 {[%clk 0:00:00]} 39. Rxd5 {[%clk 0:00:00]}  Re8 {[%clk 0:00:00]} 40. Rh5 {[%clk 0:00:00]}  Kg8 {[%clk 0:00:00]} 41. Be3 {[%clk 0:00:00]}  Re6 {[%clk 0:00:00]} 42. Bd4 {[%clk 0:00:00]}  Rxg6 {[%clk 0:00:00]} 43. Rh8+ {[%clk 0:00:00]}  Kf7 {[%clk 0:00:00]} 44. Rh7+ {[%clk 0:00:00]}  Ke6 {[%clk 0:00:00]} 45. Rxb7 {[%clk 0:00:00]}  Kd5 {[%clk 0:00:00]} 46. Be3 {[%clk 0:00:00]}  Ke5 {[%clk 0:00:00]} 47. Rb5+ {[%clk 0:00:00]}  Kf6 {[%clk 0:00:00]} 48. Rh5 {[%clk 0:00:00]}  Rg8 {[%clk 0:00:00]} 49. g3 {[%clk 0:00:00]}  Ke6 {[%clk 0:00:00]} 50. Kh3 {[%clk 0:00:00]}  Kf7 {[%clk 0:00:00]} 51. g4 {[%clk 0:00:00]}  Ke6 {[%clk 0:00:00]} 52. Kg3 {[%clk 0:00:00]}  Rf8 {[%clk 0:00:00]} 53. Rf5 {[%clk 0:00:00]}  Rxf5 {[%clk 0:00:00]} 54. gxf5+ {[%clk 0:00:00]}  Kxf5 {[%clk 0:00:00]} 55. Kh4 {[%clk 0:00:00]}  Ke5 {[%clk 0:00:00]} 56. Kg4 {[%clk 0:00:00]}  Kd5 {[%clk 0:00:00]} 57. Kf4 {[%clk 0:00:00]}  Kd6 {[%clk 0:00:00]} 58. Kxe4 {[%clk 0:00:00]}  Ke6 {[%clk 0:00:00]} 59. f4 {[%clk 0:00:00]}  Kf7 {[%clk 0:00:00]} 60. f5 {[%clk 0:00:00]}  Ke7 {[%clk 0:00:00]} 61. Bg5+ {[%clk 0:00:00]}  Kf7 {[%clk 0:00:00]} 62. Ke5 {[%clk 0:00:00]}  Ke8 {[%clk 0:00:00]} 63. f6 {[%clk 0:00:00]}  Kf8 {[%clk 0:00:00]} 64. Ke6 {[%clk 0:00:00]}  Ke8 {[%clk 0:00:00]} 65. f7+ {[%clk 0:00:00]}  Kf8 {[%clk 0:00:00]} 66. Bh6# {[%clk 0:00:00]} 1-0


[Site "https://www.chess.com"]

[Event "Titled Tuesday Blitz May 2 Early 2023"]
[White "Bouget, Alexandre"]
[Black "Skliarov, Viktor"]
[WhiteFideId "681318"]
[BlackFideId "14106736"]
[WhiteElo "2182"]
[BlackElo "2317"]
[Result "1/2-1/2"]
[Round "11"]
[TimeControl "180+2"]
[Date "2023.05.03"]
[WhiteClock "0:00:00"]
[BlackClock "0:00:00"]

1. d4 {[%clk 0:00:01]}  Nf6 {[%clk 0:00:01]} 2. c4 {[%clk 0:00:01]}  e6 {[%clk 0:00:01]} 3. Nc3 {[%clk 0:00:01]}  Bb4 {[%clk 0:00:01]} 4. a3 {[%clk 0:00:01]}  Bxc3+ {[%clk 0:00:01]} 5. bxc3 {[%clk 0:00:01]}  c5 {[%clk 0:00:01]} 6. f3 {[%clk 0:00:01]}  d6 {[%clk 0:00:01]} 7. e4 {[%clk 0:00:01]}  Nc6 {[%clk 0:00:01]} 8. Be3 {[%clk 0:00:01]}  b6 {[%clk 0:00:01]} 9. Bd3 {[%clk 0:00:01]}  e5 {[%clk 0:00:01]} 10. d5 {[%clk 0:00:01]}  Na5 {[%clk 0:00:01]} 11. Ne2 {[%clk 0:00:01]}  Ba6 {[%clk 0:00:01]} 12. Ng3 {[%clk 0:00:01]}  h6 {[%clk 0:00:01]} 13. O-O {[%clk 0:00:01]}  g5 {[%clk 0:00:01]} 14. Nf5 {[%clk 0:00:01]}  Qd7 {[%clk 0:00:01]} 15. Qe2 {[%clk 0:00:01]}  O-O-O {[%clk 0:00:01]} 16. a4 {[%clk 0:00:01]}  Ng8 {[%clk 0:00:01]} 17. Rfb1 {[%clk 0:00:01]}  Ne7 {[%clk 0:00:01]} 18. Rb5 {[%clk 0:00:01]}  Nxf5 {[%clk 0:00:01]} 19. exf5 {[%clk 0:00:01]}  Bxb5 {[%clk 0:00:01]} 20. axb5 {[%clk 0:00:01]}  f6 {[%clk 0:00:01]} 21. Ra3 {[%clk 0:00:01]}  h5 {[%clk 0:00:01]} 22. Qa2 {[%clk 0:00:01]}  g4 {[%clk 0:00:00]} 23. fxg4 {[%clk 0:00:00]}  hxg4 {[%clk 0:00:00]} 24. Bf2 {[%clk 0:00:00]}  Rh5 {[%clk 0:00:00]} 25. Qe2 {[%clk 0:00:00]}  Qg7 {[%clk 0:00:00]} 26. Qe4 {[%clk 0:00:00]}  Rdh8 {[%clk 0:00:00]} 27. Bg3 {[%clk 0:00:00]}  Rxh2 {[%clk 0:00:00]} 28. Bxh2 {[%clk 0:00:00]}  g3 {[%clk 0:00:00]} 29. Bxg3 {[%clk 0:00:00]}  Qxg3 {[%clk 0:00:00]} 30. Qf3 {[%clk 0:00:00]}  Qe1+ {[%clk 0:00:00]} 31. Bf1 {[%clk 0:00:00]}  Qh4 {[%clk 0:00:00]} 32. Ra1 {[%clk 0:00:00]}  Qh2+ {[%clk 0:00:00]} 33. Kf2 {[%clk 0:00:00]}  Rh4 {[%clk 0:00:00]} 34. Ke3 {[%clk 0:00:00]}  Qg1+ {[%clk 0:00:00]} 35. Kd2 {[%clk 0:00:00]}  Rf4 {[%clk 0:00:00]} 36. Qg3 {[%clk 0:00:00]}  Qf2+ {[%clk 0:00:00]} 37. Qxf2 {[%clk 0:00:00]}  Rxf2+ {[%clk 0:00:00]} 38. Ke3 {[%clk 0:00:00]}  Rc2 {[%clk 0:00:00]} 39. Kd3 {[%clk 0:00:00]}  Rb2 {[%clk 0:00:00]} 40. g4 {[%clk 0:00:00]}  Rh2 {[%clk 0:00:00]} 41. Be2 {[%clk 0:00:00]}  Kd7 {[%clk 0:00:00]} 42. Rg1 {[%clk 0:00:00]}  Ke7 {[%clk 0:00:00]} 43. g5 {[%clk 0:00:00]}  fxg5 {[%clk 0:00:00]} 44. Rxg5 {[%clk 0:00:00]}  Kf6 {[%clk 0:00:00]} 45. Rg6+ {[%clk 0:00:00]}  Kxf5 {[%clk 0:00:00]} 46. Rxd6 {[%clk 0:00:00]}  e4+ {[%clk 0:00:00]} 47. Ke3 {[%clk 0:00:00]}  Rh3+ {[%clk 0:00:00]} 48. Kd2 {[%clk 0:00:00]}  Rh2 {[%clk 0:00:00]} 49. Ke3 {[%clk 0:00:00]}  Nb3 {[%clk 0:00:00]} 50. Rd7 {[%clk 0:00:00]}  Nc1 {[%clk 0:00:00]} 51. Bd1 {[%clk 0:00:00]}  Rh3+ {[%clk 0:00:00]} 52. Kd2 {[%clk 0:00:00]}  Nd3 {[%clk 0:00:00]} 53. Rxa7 {[%clk 0:00:00]}  Ne5 {[%clk 0:00:00]} 54. Be2 {[%clk 0:00:00]}  e3+ {[%clk 0:00:00]} 55. Kc2 {[%clk 0:00:00]}  Rh2 {[%clk 0:00:00]} 56. Kd1 {[%clk 0:00:00]}  Rh1+ {[%clk 0:00:00]} 57. Kc2 {[%clk 0:00:00]}  Re1 {[%clk 0:00:00]} 58. Bh5 {[%clk 0:00:00]}  Rh1 {[%clk 0:00:00]} 59. Be2 {[%clk 0:00:00]}  Rh2 {[%clk 0:00:00]} 60. Kd1 {[%clk 0:00:00]}  Rh1+ {[%clk 0:00:00]} 61. Kc2 {[%clk 0:00:00]} 1/2-1/2


[Site "https://www.chess.com"]

[Event "Titled Tuesday Blitz May 2 Early 2023"]
[White "Gracia Alvarez, Gerardo Antonio"]
[Black "Hajiyev, Kanan"]
[WhiteFideId "5109124"]
[BlackFideId "13404148"]
[WhiteElo "2160"]
[BlackElo "2103"]
[Result "0-1"]
[Round "11"]
[TimeControl "180+2"]
[Date "2023.05.03"]
[WhiteClock "0:00:00"]
[BlackClock "0:00:00"]

1. e4 {[%clk 0:00:01]}  c6 {[%clk 0:00:01]} 2. d4 {[%clk 0:00:01]}  d5 {[%clk 0:00:01]} 3. Nc3 {[%clk 0:00:01]}  a6 {[%clk 0:00:01]} 4. Nf3 {[%clk 0:00:01]}  Bg4 {[%clk 0:00:01]} 5. h3 {[%clk 0:00:01]}  Bh5 {[%clk 0:00:01]} 6. g4 {[%clk 0:00:01]}  Bg6 {[%clk 0:00:01]} 7. exd5 {[%clk 0:00:01]}  cxd5 {[%clk 0:00:01]} 8. Ne5 {[%clk 0:00:01]}  Nc6 {[%clk 0:00:01]} 9. Nxg6 {[%clk 0:00:01]}  hxg6 {[%clk 0:00:01]} 10. Bg2 {[%clk 0:00:01]}  e6 {[%clk 0:00:01]} 11. O-O {[%clk 0:00:01]}  Nf6 {[%clk 0:00:01]} 12. Be3 {[%clk 0:00:01]}  Bb4 {[%clk 0:00:01]} 13. Ne2 {[%clk 0:00:01]}  Ba5 {[%clk 0:00:01]} 14. f4 {[%clk 0:00:01]}  Bc7 {[%clk 0:00:01]} 15. Qd3 {[%clk 0:00:01]}  Qd6 {[%clk 0:00:01]} 16. c3 {[%clk 0:00:01]}  Ne4 {[%clk 0:00:01]} 17. Bxe4 {[%clk 0:00:01]}  dxe4 {[%clk 0:00:01]} 18. Qxe4 {[%clk 0:00:01]}  Rxh3 {[%clk 0:00:01]} 19. Kg2 {[%clk 0:00:01]}  Rh8 {[%clk 0:00:01]} 20. Rh1 {[%clk 0:00:01]}  O-O-O {[%clk 0:00:01]} 21. b4 {[%clk 0:00:01]}  f5 {[%clk 0:00:01]} 22. gxf5 {[%clk 0:00:00]}  exf5 {[%clk 0:00:01]} 23. Qf3 {[%clk 0:00:00]}  Rde8 {[%clk 0:00:01]} 24. Rxh8 {[%clk 0:00:00]}  Rxh8 {[%clk 0:00:01]} 25. Rh1 {[%clk 0:00:00]}  Rxh1 {[%clk 0:00:01]} 26. Kxh1 {[%clk 0:00:00]}  g5 {[%clk 0:00:01]} 27. Qh3 {[%clk 0:00:00]}  Qd5+ {[%clk 0:00:01]} 28. Kg1 {[%clk 0:00:00]}  Qxa2 {[%clk 0:00:01]} 29. Qxf5+ {[%clk 0:00:00]}  Kb8 {[%clk 0:00:01]} 30. Nc1 {[%clk 0:00:00]}  Qc4 {[%clk 0:00:00]} 31. d5 {[%clk 0:00:00]}  Qxc3 {[%clk 0:00:00]} 32. Qe4 {[%clk 0:00:00]}  gxf4 {[%clk 0:00:00]} 33. Ne2 {[%clk 0:00:00]}  Qxe3+ {[%clk 0:00:00]} 0-1


[Site "https://www.chess.com"]

[Event "Titled Tuesday Blitz May 2 Early 2023"]
[White "Kukula, Pawel"]
[Black "Goswami, Vedant"]
[WhiteFideId "1115081"]
[BlackFideId "5003725"]
[WhiteElo "2012"]
[BlackElo "2011"]
[Result "0-1"]
[Round "11"]
[TimeControl "180+2"]
[Date "2023.05.03"]
[WhiteClock "0:00:00"]
[BlackClock "0:00:00"]

1. b4 {[%clk 0:00:01]}  e5 {[%clk 0:00:01]} 2. Bb2 {[%clk 0:00:01]}  d6 {[%clk 0:00:01]} 3. e3 {[%clk 0:00:01]}  Nf6 {[%clk 0:00:01]} 4. Nf3 {[%clk 0:00:01]}  e4 {[%clk 0:00:01]} 5. Nd4 {[%clk 0:00:01]}  c5 {[%clk 0:00:01]} 6. bxc5 {[%clk 0:00:01]}  dxc5 {[%clk 0:00:01]} 7. Nb3 {[%clk 0:00:01]}  Nc6 {[%clk 0:00:01]} 8. Bb5 {[%clk 0:00:01]}  Bd7 {[%clk 0:00:01]} 9. O-O {[%clk 0:00:01]}  Bd6 {[%clk 0:00:01]} 10. f4 {[%clk 0:00:01]}  O-O {[%clk 0:00:01]} 11. Nc3 {[%clk 0:00:01]}  Qe7 {[%clk 0:00:01]} 12. Bxc6 {[%clk 0:00:01]}  Bxc6 {[%clk 0:00:01]} 13. Ne2 {[%clk 0:00:01]}  Bb5 {[%clk 0:00:01]} 14. a4 {[%clk 0:00:01]}  Ba6 {[%clk 0:00:01]} 15. Ng3 {[%clk 0:00:00]}  Bxf1 {[%clk 0:00:00]} 16. Qxf1 {[%clk 0:00:00]}  Qe6 {[%clk 0:00:00]} 17. Nc1 {[%clk 0:00:00]}  Nd5 {[%clk 0:00:00]} 18. Nce2 {[%clk 0:00:00]}  f5 {[%clk 0:00:00]} 19. Nc3 {[%clk 0:00:00]}  Nb4 {[%clk 0:00:00]} 20. Rc1 {[%clk 0:00:00]}  Be7 {[%clk 0:00:00]} 21. Qb5 {[%clk 0:00:00]}  b6 {[%clk 0:00:00]} 22. a5 {[%clk 0:00:00]}  Bf6 {[%clk 0:00:00]} 23. Nh5 {[%clk 0:00:00]}  Be7 {[%clk 0:00:00]} 24. Ne2 {[%clk 0:00:00]}  g6 {[%clk 0:00:00]} 25. Nhg3 {[%clk 0:00:00]}  a6 {[%clk 0:00:00]} 26. Qxb6 {[%clk 0:00:00]}  Qxb6 {[%clk 0:00:00]} 27. axb6 {[%clk 0:00:00]}  Rab8 {[%clk 0:00:00]} 28. Bc3 {[%clk 0:00:00]}  Rxb6 {[%clk 0:00:00]} 29. Bxb4 {[%clk 0:00:00]}  cxb4 {[%clk 0:00:00]} 30. Nd4 {[%clk 0:00:00]}  Bf6 {[%clk 0:00:00]} 31. Nb3 {[%clk 0:00:00]}  Rc8 {[%clk 0:00:00]} 32. Kf2 {[%clk 0:00:00]}  Rbc6 {[%clk 0:00:00]} 33. Nd4 {[%clk 0:00:00]}  Bxd4 {[%clk 0:00:00]} 34. exd4 {[%clk 0:00:00]}  Rxc2 {[%clk 0:00:00]} 35. Rd1 {[%clk 0:00:00]}  b3 {[%clk 0:00:00]} 36. Ne2 {[%clk 0:00:00]}  b2 {[%clk 0:00:00]} 37. Ke3 {[%clk 0:00:00]}  Rc1 {[%clk 0:00:00]} 38. Nxc1 {[%clk 0:00:00]}  bxc1=Q {[%clk 0:00:00]} 0-1


[Site "https://www.chess.com"]